[Event "European Online Club-ch-I 2021"]
[Site "Online"]
[Date "2021.03.27"]
[Round "5.14"]
[White "Bilquez, Romain"]
[Black "Godart, Francois"]
[Result "0-1"]
[ECO "C15"]
[WhiteElo "2276"]
[BlackElo "2422"]
[Annotator "NA"]
[PlyCount "96"]
[EventDate "2021.03.27"]
[EventType "team-tourn"]
[EventCountry "NET"]
[SourceTitle "playchess.com"]
[Source "ChessBase"]
[SourceQuality "1"]
[TimeControl "900+5"]

1. e4 {[%emt 0:00:00]} e6 {[%emt 0:00:04]} 2. d4 {[%emt 0:00:01]} d5 {[%emt 0:00:01]} 3. Nc3 {[%emt 0:00:02]} Bb4 {[%emt 0:00:02]} 4. Nge2 {[%emt 0:00:01]} dxe4 {[%emt 0:00:02]} 5. a3 {[%emt 0:00:01]} Bxc3+ {[%emt 0:00:02]} 6. Nxc3 {[%emt 0:00:00]} Nc6 {[%emt 0:00:01]} 7. Bb5 {[%emt 0:00:03]} Nge7 {[%emt 0:00:03]} 8. Nxe4 {[%emt 0:00:09]} O-O {[%emt 0:00:51]} 9. c3 {[%emt 0:00:35]} Qd5 {[%emt 0:00:47]} 10. Bxc6 {[%emt 0:00:43]} Nxc6 {[%emt 0:00:13]} 11. Qf3 {[%emt 0:00:24]} b6 {[%emt 0:01:37]} 12. O-O {[%emt 0:01:07]} Bb7 {[%emt 0:00:04]} 13. Re1 {[%emt 0:00:21]} Rad8 {[%emt 0:00:04]} 14. Qg3 {[%emt 0:00:21]} f5 {[%emt 0:00:49]} 15. Ng5 {[%emt 0:01:07]} Rf6 {[%emt 0:00:55]} 16. Bf4 {[%emt 0:02:41]} Rg6 {[%emt 0:00:28]} 17. Qf3 {[%emt 0:01:33]} Na5 {[%emt 0:02:30]} 18. Qxd5 {[%emt 0:00:27]} Bxd5 {[%emt 0:00:01]} 19. g3 {[%emt 0:01:39]} Nb3 {[%emt 0:00:55]} 20. Rad1 {[%emt 0:00:22]} h6 {[%emt 0:00:27]} 21. Nh3 {[%emt 0:00:11]} Bf3 {[%emt 0:00:17]} 22. Bxc7 {[%emt 0:01:53]} Rd7 {[%emt 0:00:02]} 23. Be5 {[%emt 0:00:24]} Bxd1 {[%emt 0:00:29]} 24. Rxd1 {[%emt 0:00:10]} h5 {[%emt 0:00:45]} 25. Nf4 {[%emt 0:01:02]} Rh6 {[%emt 0:00:03]} 26. h4 {[%emt 0:00:09]} Kf7 {[%emt 0:00:01]} 27. Nd3 {[%emt 0:00:04]} Rh8 {[%emt 0:00:22]} 28. Bf4 {[%emt 0:00:03]} Rd5 {[%emt 0:00:09]} 29. Ne5+ {[%emt 0:00:02]} Ke8 {[%emt 0:00:26]} 30. Ng6 {[%emt 0:00:22]} Rg8 {[%emt 0:00:05]} 31. Re1 {[%emt 0:00:01]} Kd7 {[%emt 0:00:08]} 32. Be5 {[%emt 0:00:17]} Na5 {[%emt 0:00:09]} 33. Nf4 {[%emt 0:00:09]} Nc4 {[%emt 0:00:41]} 34. Nxd5 {[%emt 0:00:09]} exd5 {[%emt 0:00:02]} 35. b3 {[%emt 0:00:03]} Nd2 {[%emt 0:00:05]} 36. Kg2 {[%emt 0:00:41]} Nxb3 {[%emt 0:00:02]} 37. Bf4 {[%emt 0:00:08]} Re8 {[%emt 0:00:22]} 38. Be5 {[%emt 0:00:02]} g6 {[%emt 0:00:10]} 39. Kf3 {[%emt 0:00:06]} b5 {[%emt 0:00:06]} 40. Kf4 {[%emt 0:00:07]} Nd2 {[%emt 0:00:04]} 41. f3 {[%emt 0:00:06]} Nc4 {[%emt 0:00:04]} 42. Rb1 {[%emt 0:00:08]} a6 {[%emt 0:00:02]} 43. a4 {[%emt 0:00:02]} bxa4 {[%emt 0:00:04]} 44. Rb7+ {[%emt 0:00:02]} Kc6 {[%emt 0:00:01]} 45. Rc7+ {[%emt 0:00:30]} Kb6 {[%emt 0:00:03]} 46. Rc5 {[%emt 0:00:04]} a3 {[%emt 0:00:10]} 47. Rxd5 {[%emt 0:00:04]} a2 {[%emt 0:00:03]} 48. Rc5 {[%emt 0:00:00]} a1=Q {[%emt 0:00:04]} 0-1

[Event "European Online Club-ch-I 2021"]
[Site "Online"]
[Date "2021.03.27"]
[Round "5.15"]
[White "Marechal, Andy"]
[Black "Martsynovskaya, Marina"]
[Result "1-0"]
[ECO "C55"]
[WhiteElo "2332"]
[BlackElo "2046"]
[Annotator "NA"]
[PlyCount "109"]
[EventDate "2021.03.27"]
[EventType "team-tourn"]
[EventCountry "NET"]
[SourceTitle "playchess.com"]
[Source "ChessBase"]
[SourceQuality "1"]
[TimeControl "900+5"]

1. e4 {[%emt 0:00:00]} e5 {[%emt 0:00:04]} 2. Nf3 {[%emt 0:00:05]} Nc6 {[%emt 0:00:03]} 3. Bc4 {[%emt 0:00:02]} Be7 {[%emt 0:00:20]} 4. c3 {[%emt 0:00:05]} Nf6 {[%emt 0:00:08]} 5. d3 {[%emt 0:00:03]} O-O {[%emt 0:00:03]} 6. Bb3 {[%emt 0:00:01]} h6 {[%emt 0:00:46]} 7. Nbd2 {[%emt 0:00:12]} d6 {[%emt 0:00:03]} 8. Nf1 {[%emt 0:00:10]} Be6 {[%emt 0:00:14]} 9. Ng3 {[%emt 0:00:02]} Re8 {[%emt 0:00:37]} 10. h3 {[%emt 0:00:50]} Qd7 {[%emt 0:00:22]} 11. Nh2 {[%emt 0:00:23]} d5 {[%emt 0:00:54]} 12. Qf3 {[%emt 0:00:07]} dxe4 {[%emt 0:01:03]} 13. dxe4 {[%emt 0:00:04]} Bxb3 {[%emt 0:00:04]} 14. axb3 {[%emt 0:00:02]} Rad8 {[%emt 0:00:10]} 15. Ng4 {[%emt 0:01:25]} Qd3 {[%emt 0:01:35]} 16. Qxd3 {[%emt 0:00:37]} Rxd3 {[%emt 0:00:03]} 17. Ke2 {[%emt 0:00:02]} Red8 {[%emt 0:00:12]} 18. b4 {[%emt 0:01:28]} a6 {[%emt 0:00:05]} 19. Ne3 {[%emt 0:01:02]} R3d7 {[%emt 0:00:40]} 20. Nef5 {[%emt 0:00:09]} Bf8 {[%emt 0:00:02]} 21. f3 {[%emt 0:00:51]} Kh7 {[%emt 0:00:04]} 22. Ne3 {[%emt 0:00:14]} g6 {[%emt 0:00:09]} 23. Ng4 {[%emt 0:00:10]} Ng8 {[%emt 0:00:22]} 24. h4 {[%emt 0:00:28]} h5 {[%emt 0:00:20]} 25. Nf2 {[%emt 0:00:03]} Bh6 {[%emt 0:00:51]} 26. Bxh6 {[%emt 0:00:14]} Kxh6 {[%emt 0:00:04]} 27. Rad1 {[%emt 0:00:05]} Nge7 {[%emt 0:00:47]} 28. Rxd7 {[%emt 0:00:07]} Rxd7 {[%emt 0:00:03]} 29. Nd3 {[%emt 0:00:01]} b6 {[%emt 0:00:54]} 30. Ra1 {[%emt 0:00:21]} f6 {[%emt 0:01:20]} 31. Rxa6 {[%emt 0:00:08]} g5 {[%emt 0:00:10]} 32. hxg5+ {[%emt 0:00:20]} Kxg5 {[%emt 0:00:05]} 33. Ra8 {[%emt 0:00:28]} h4 {[%emt 0:00:31]} 34. Nf1 {[%emt 0:00:07]} Ng6 {[%emt 0:00:17]} 35. Ne3 {[%emt 0:00:19]} Nce7 {[%emt 0:00:09]} 36. Re8 {[%emt 0:00:57]} Nf4+ {[%emt 0:00:25]} 37. Nxf4 {[%emt 0:00:15]} exf4 {[%emt 0:01:46]} 38. Ng4 {[%emt 0:01:00]} c5 {[%emt 0:00:19]} 39. bxc5 {[%emt 0:00:24]} bxc5 {[%emt 0:00:04]} 40. Rb8 {[%emt 0:00:53]} f5 {[%emt 0:00:30]} 41. Nf2 {[%emt 0:00:19]} Ng6 {[%emt 0:00:23]} 42. Rb5 {[%emt 0:00:15]} Rc7 {[%emt 0:00:14]} 43. exf5 {[%emt 0:00:06]} Kxf5 {[%emt 0:00:47]} 44. Ne4 {[%emt 0:00:27]} Ne5 {[%emt 0:00:21]} 45. Rxc5 {[%emt 0:00:24]} Rg7 {[%emt 0:00:07]} 46. Kf1 {[%emt 0:01:13]} Rd7 {[%emt 0:00:07]} 47. Nf2 {[%emt 0:00:17]} Ke6 {[%emt 0:00:06]} 48. Rb5 {[%emt 0:00:24]} Rd2 {[%emt 0:00:08]} 49. Rb6+ {[%emt 0:00:22]} Kf5 {[%emt 0:00:03]} 50. Ne4 {[%emt 0:00:15]} Nc4 {[%emt 0:00:02]} 51. Rb5+ {[%emt 0:00:26]} Kg6 {[%emt 0:00:05]} 52. Nxd2 {[%emt 0:00:05]} Nxd2+ {[%emt 0:00:03]} 53. Ke2 {[%emt 0:00:02]} Nc4 {[%emt 0:00:03]} 54. Rb4 {[%emt 0:00:09]} Ne3 {[%emt 0:00:03]} 55. Rxf4 {[%emt 0:00:06]} 1-0

[Event "European Online Club-ch-I 2021"]
[Site "Online"]
[Date "2021.03.27"]
[Round "5.16"]
[White "Devallee, Jeremie"]
[Black "Dishman, Stephen"]
[Result "0-1"]
[ECO "B18"]
[WhiteElo "2220"]
[BlackElo "2316"]
[Annotator "NA"]
[PlyCount "76"]
[EventDate "2021.03.27"]
[EventType "team-tourn"]
[EventCountry "NET"]
[SourceTitle "playchess.com"]
[Source "ChessBase"]
[SourceQuality "1"]
[TimeControl "900+5"]

1. e4 {[%emt 0:00:00]} c6 {[%emt 0:00:05]} 2. d4 {[%emt 0:00:03]} d5 {[%emt 0:00:01]} 3. Nc3 {[%emt 0:00:01]} dxe4 {[%emt 0:00:02]} 4. Nxe4 {[%emt 0:00:02]} Bf5 {[%emt 0:00:01]} 5. Ng3 {[%emt 0:00:02]} Bg6 {[%emt 0:00:01]} 6. N1e2 {[%emt 0:00:01]} Nf6 {[%emt 0:00:05]} 7. Nf4 {[%emt 0:00:02]} e5 {[%emt 0:00:02]} 8. Nxg6 {[%emt 0:00:01]} hxg6 {[%emt 0:00:02]} 9. dxe5 {[%emt 0:00:02]} Qa5+ {[%emt 0:00:02]} 10. Bd2 {[%emt 0:00:03]} Qxe5+ {[%emt 0:00:02]} 11. Qe2 {[%emt 0:00:01]} Nbd7 {[%emt 0:00:03]} 12. O-O-O {[%emt 0:00:03]} O-O-O {[%emt 0:00:09]} 13. Qf3 {[%emt 0:02:05]} Nb6 {[%emt 0:02:05]} 14. Bd3 {[%emt 0:00:16]} Bc5 {[%emt 0:02:39]} 15. Bc3 {[%emt 0:05:09]} Bd4 {[%emt 0:00:40]} 16. Rhe1 {[%emt 0:00:29]} Qg5+ {[%emt 0:00:43]} 17. Bd2 {[%emt 0:00:09]} Qd5 {[%emt 0:00:08]} 18. Qxd5 {[%emt 0:00:16]} Nbxd5 {[%emt 0:00:10]} 19. Ne4 {[%emt 0:00:28]} Rxh2 {[%emt 0:00:48]} 20. c4 {[%emt 0:00:26]} Nxe4 {[%emt 0:00:58]} 21. Bxe4 {[%emt 0:00:17]} Nf6 {[%emt 0:00:05]} 22. Bf4 {[%emt 0:00:27]} Rhh8 {[%emt 0:00:07]} 23. Bf3 {[%emt 0:00:29]} Bxf2 {[%emt 0:00:30]} 24. Rf1 {[%emt 0:00:02]} Bb6 {[%emt 0:00:36]} 25. g4 {[%emt 0:00:19]} Rxd1+ {[%emt 0:00:09]} 26. Bxd1 {[%emt 0:00:20]} Ne4 {[%emt 0:01:35]} 27. g5 {[%emt 0:00:08]} f5 {[%emt 0:00:04]} 28. gxf6 {[%emt 0:02:05]} gxf6 {[%emt 0:00:00]} 29. Bc2 {[%emt 0:00:14]} Re8 {[%emt 0:00:15]} 30. Re1 {[%emt 0:00:42]} f5 {[%emt 0:00:03]} 31. b4 {[%emt 0:00:08]} Bc7 {[%emt 0:00:18]} 32. Be3 {[%emt 0:00:05]} b6 {[%emt 0:00:27]} 33. Rg1 {[%emt 0:00:13]} Re6 {[%emt 0:00:03]} 34. Rh1 {[%emt 0:00:20]} Kb7 {[%emt 0:00:13]} 35. Rh7 {[%emt 0:00:05]} Nf6 {[%emt 0:00:16]} 36. Rh3 {[%emt 0:00:02]} Rxe3 {[%emt 0:00:08]} 37. Rxe3 {[%emt 0:00:02]} Bf4 {[%emt 0:00:02]} 38. Kd2 {[%emt 0:00:01]} Ng4 {[%emt 0:00:02]} 0-1

[Event "European Online Club-ch-I 2021"]
[Site "Online"]
[Date "2021.03.27"]
[Round "5.18"]
[White "Sprenar, Petr"]
[Black "Sorensen, Jan"]
[Result "0-1"]
[ECO "E00"]
[WhiteElo "2259"]
[BlackElo "2369"]
[Annotator "NA"]
[PlyCount "98"]
[EventDate "2021.03.27"]
[EventType "team-tourn"]
[EventCountry "NET"]
[SourceTitle "playchess.com"]
[Source "ChessBase"]
[SourceQuality "1"]
[TimeControl "900+5"]

1. d4 {[%emt 0:00:00]} e6 {[%emt 0:00:04]} 2. c4 {[%emt 0:00:10]} Nf6 {[%emt 0:00:03]} 3. g3 {[%emt 0:00:11]} Bb4+ {[%emt 0:00:04]} 4. Bd2 {[%emt 0:00:06]} Qe7 {[%emt 0:00:04]} 5. Bg2 {[%emt 0:00:10]} Nc6 {[%emt 0:00:05]} 6. e3 {[%emt 0:01:01]} O-O {[%emt 0:00:15]} 7. Ne2 {[%emt 0:00:02]} Bxd2+ {[%emt 0:00:13]} 8. Nxd2 {[%emt 0:00:08]} d6 {[%emt 0:00:05]} 9. O-O {[%emt 0:00:02]} e5 {[%emt 0:00:02]} 10. d5 {[%emt 0:00:25]} Nb8 {[%emt 0:00:05]} 11. Nc3 {[%emt 0:00:08]} a5 {[%emt 0:00:07]} 12. a3 {[%emt 0:00:23]} Na6 {[%emt 0:00:19]} 13. b4 {[%emt 0:00:42]} Bg4 {[%emt 0:00:48]} 14. Qb3 {[%emt 0:01:52]} h5 {[%emt 0:00:49]} 15. h3 {[%emt 0:00:32]} Bd7 {[%emt 0:01:03]} 16. Rfe1 {[%emt 0:04:17]} Nh7 {[%emt 0:01:09]} 17. f4 {[%emt 0:00:34]} h4 {[%emt 0:00:43]} 18. g4 {[%emt 0:00:15]} exf4 {[%emt 0:00:06]} 19. exf4 {[%emt 0:00:21]} Qf6 {[%emt 0:00:03]} 20. Re4 {[%emt 0:02:10]} axb4 {[%emt 0:00:09]} 21. axb4 {[%emt 0:00:09]} Nc5 {[%emt 0:00:09]} 22. bxc5 {[%emt 0:00:43]} Rxa1+ {[%emt 0:00:05]} 23. Kh2 {[%emt 0:00:01]} dxc5 {[%emt 0:00:53]} 24. Nf3 {[%emt 0:01:02]} Rfa8 {[%emt 0:00:38]} 25. g5 {[%emt 0:00:36]} Qd6 {[%emt 0:00:19]} 26. Qxb7 {[%emt 0:00:05]} R1a7 {[%emt 0:01:03]} 27. Qb2 {[%emt 0:00:02]} Ra6 {[%emt 0:00:16]} 28. Nxh4 {[%emt 0:00:16]} Nxg5 {[%emt 0:00:07]} 29. Re5 {[%emt 0:00:08]} f6 {[%emt 0:00:15]} 30. Nf5 {[%emt 0:00:30]} Bxf5 {[%emt 0:00:06]} 31. Rxf5 {[%emt 0:00:00]} Re8 {[%emt 0:00:56]} 32. Nb5 {[%emt 0:00:11]} Qd7 {[%emt 0:00:12]} 33. Qc2 {[%emt 0:00:03]} Nf7 {[%emt 0:00:17]} 34. Rh5 {[%emt 0:00:10]} Nh6 {[%emt 0:00:09]} 35. d6 {[%emt 0:00:09]} c6 {[%emt 0:00:22]} 36. Rxh6 {[%emt 0:00:17]} f5 {[%emt 0:00:28]} 37. Rg6 {[%emt 0:00:08]} cxb5 {[%emt 0:00:32]} 38. cxb5 {[%emt 0:00:05]} Rxd6 {[%emt 0:00:06]} 39. Qc4+ {[%emt 0:00:06]} Kh7 {[%emt 0:00:15]} 40. Rg5 {[%emt 0:00:01]} g6 {[%emt 0:00:37]} 41. Qxc5 {[%emt 0:00:06]} Rd2 {[%emt 0:00:08]} 42. h4 {[%emt 0:00:04]} Qd6 {[%emt 0:00:10]} 43. Qxd6 {[%emt 0:00:06]} Rxd6 {[%emt 0:00:02]} 44. h5 {[%emt 0:00:02]} gxh5 {[%emt 0:00:09]} 45. Rxh5+ {[%emt 0:00:01]} Kg6 {[%emt 0:00:02]} 46. Rg5+ {[%emt 0:00:06]} Kf6 {[%emt 0:00:01]} 47. Rh5 {[%emt 0:00:12]} Rd2 {[%emt 0:00:09]} 48. b6 {[%emt 0:00:05]} Ree2 {[%emt 0:00:07]} 49. Rg5 {[%emt 0:00:02]} Rb2 {[%emt 0:00:03]} 0-1

[Event "European Online Club-ch-I 2021"]
[Site "Online"]
[Date "2021.03.27"]
[Round "5.19"]
[White "Boe, Mads"]
[Black "Eret, Matous"]
[Result "1-0"]
[ECO "A46"]
[WhiteElo "2250"]
[BlackElo "2255"]
[Annotator "NA"]
[PlyCount "85"]
[EventDate "2021.03.27"]
[EventType "team-tourn"]
[EventCountry "NET"]
[SourceTitle "playchess.com"]
[Source "ChessBase"]
[SourceQuality "1"]
[TimeControl "900+5"]

1. d4 {[%emt 0:00:00]} Nf6 {[%emt 0:00:04]} 2. Nf3 {[%emt 0:00:03]} d6 {[%emt 0:00:02]} 3. Bg5 {[%emt 0:00:03]} Nbd7 {[%emt 0:00:04]} 4. e3 {[%emt 0:00:02]} e5 {[%emt 0:00:06]} 5. c3 {[%emt 0:00:11]} Be7 {[%emt 0:00:11]} 6. Bc4 {[%emt 0:00:11]} O-O {[%emt 0:00:16]} 7. O-O {[%emt 0:00:04]} c6 {[%emt 0:00:21]} 8. a4 {[%emt 0:00:03]} a5 {[%emt 0:00:04]} 9. Ba2 {[%emt 0:00:07]} Qc7 {[%emt 0:00:11]} 10. h3 {[%emt 0:00:05]} Re8 {[%emt 0:00:59]} 11. Nbd2 {[%emt 0:00:40]} Nf8 {[%emt 0:03:18]} 12. Bh4 {[%emt 0:00:12]} e4 {[%emt 0:01:21]} 13. Ne1 {[%emt 0:00:06]} Ng6 {[%emt 0:00:28]} 14. Bg3 {[%emt 0:00:04]} h5 {[%emt 0:00:58]} 15. Qc2 {[%emt 0:01:39]} Bf8 {[%emt 0:00:50]} 16. f3 {[%emt 0:00:48]} h4 {[%emt 0:00:33]} 17. Bh2 {[%emt 0:00:06]} Be6 {[%emt 0:00:27]} 18. fxe4 {[%emt 0:00:26]} Bxa2 {[%emt 0:00:26]} 19. Rxa2 {[%emt 0:00:05]} Qe7 {[%emt 0:00:27]} 20. Nef3 {[%emt 0:01:39]} Nxe4 {[%emt 0:00:28]} 21. Nxe4 {[%emt 0:00:02]} Qxe4 {[%emt 0:00:00]} 22. Qxe4 {[%emt 0:00:02]} Rxe4 {[%emt 0:00:00]} 23. Kf2 {[%emt 0:00:05]} Rae8 {[%emt 0:00:28]} 24. Re1 {[%emt 0:00:02]} d5 {[%emt 0:00:11]} 25. Raa1 {[%emt 0:00:05]} f6 {[%emt 0:00:21]} 26. Rab1 {[%emt 0:00:07]} Ne7 {[%emt 0:00:53]} 27. Nd2 {[%emt 0:00:15]} Re6 {[%emt 0:00:04]} 28. e4 {[%emt 0:00:13]} dxe4 {[%emt 0:00:04]} 29. Rxe4 {[%emt 0:00:07]} Rxe4 {[%emt 0:00:06]} 30. Nxe4 {[%emt 0:00:02]} Nf5 {[%emt 0:00:17]} 31. Re1 {[%emt 0:00:07]} Kf7 {[%emt 0:00:04]} 32. Bc7 {[%emt 0:00:30]} Ra8 {[%emt 0:00:05]} 33. Kf3 {[%emt 0:00:24]} g6 {[%emt 0:00:40]} 34. Re2 {[%emt 0:00:05]} Be7 {[%emt 0:00:11]} 35. Bf4 {[%emt 0:01:41]} Rd8 {[%emt 0:00:15]} 36. Bc7 {[%emt 0:00:09]} Ra8 {[%emt 0:00:04]} 37. Bb6 {[%emt 0:00:05]} Ng7 {[%emt 0:00:27]} 38. Bc5 {[%emt 0:00:32]} b5 {[%emt 0:00:59]} 39. Ng5+ {[%emt 0:01:47]} fxg5 {[%emt 0:00:02]} 40. Rxe7+ {[%emt 0:00:03]} Kf6 {[%emt 0:00:04]} 41. Rc7 {[%emt 0:00:07]} Ra6 {[%emt 0:00:18]} 42. d5 {[%emt 0:00:13]} Ne8 {[%emt 0:00:33]} 43. Bd4+ {[%emt 0:00:30]} 1-0

[Event "European Online Club-ch-I 2021"]
[Site "Online"]
[Date "2021.03.27"]
[Round "5.20"]
[White "Stinka, Jakub"]
[Black "Rendboe, John Filip"]
[Result "1-0"]
[ECO "D59"]
[WhiteElo "2232"]
[BlackElo "2169"]
[Annotator "NA"]
[PlyCount "85"]
[EventDate "2021.03.27"]
[EventType "team-tourn"]
[EventCountry "NET"]
[SourceTitle "playchess.com"]
[Source "ChessBase"]
[SourceQuality "1"]
[TimeControl "900+5"]

1. d4 {[%emt 0:00:00]} Nf6 {[%emt 0:00:18]} 2. c4 {[%emt 0:00:04]} e6 {[%emt 0:00:04]} 3. Nf3 {[%emt 0:00:03]} d5 {[%emt 0:00:11]} 4. Nc3 {[%emt 0:00:05]} Be7 {[%emt 0:00:11]} 5. Bg5 {[%emt 0:00:02]} O-O {[%emt 0:00:05]} 6. e3 {[%emt 0:00:03]} h6 {[%emt 0:00:07]} 7. Bh4 {[%emt 0:00:06]} b6 {[%emt 0:00:03]} 8. cxd5 {[%emt 0:00:04]} Nxd5 {[%emt 0:00:37]} 9. Bxe7 {[%emt 0:00:04]} Qxe7 {[%emt 0:00:03]} 10. Nxd5 {[%emt 0:00:02]} exd5 {[%emt 0:00:07]} 11. Rc1 {[%emt 0:00:03]} Bb7 {[%emt 0:00:30]} 12. Bd3 {[%emt 0:02:09]} c5 {[%emt 0:00:43]} 13. dxc5 {[%emt 0:00:37]} bxc5 {[%emt 0:00:07]} 14. O-O {[%emt 0:00:03]} Nc6 {[%emt 0:00:53]} 15. Bb1 {[%emt 0:00:40]} Nb4 {[%emt 0:02:06]} 16. a3 {[%emt 0:01:03]} Na6 {[%emt 0:00:10]} 17. Qd3 {[%emt 0:01:54]} g6 {[%emt 0:00:05]} 18. Rfd1 {[%emt 0:00:05]} Rfd8 {[%emt 0:01:06]} 19. Re1 {[%emt 0:02:12]} Rab8 {[%emt 0:00:26]} 20. h4 {[%emt 0:00:25]} h5 {[%emt 0:00:38]} 21. Qe2 {[%emt 0:00:31]} Qf6 {[%emt 0:00:25]} 22. Ng5 {[%emt 0:01:20]} Bc8 {[%emt 0:02:11]} 23. Rc3 {[%emt 0:01:37]} Re8 {[%emt 0:01:26]} 24. e4 {[%emt 0:00:58]} Bg4 {[%emt 0:01:03]} 25. f3 {[%emt 0:00:28]} Bd7 {[%emt 0:00:37]} 26. Qf2 {[%emt 0:01:12]} Qb6 {[%emt 0:00:41]} 27. Rc2 {[%emt 0:00:55]} d4 {[%emt 0:00:23]} 28. Rd2 {[%emt 0:00:09]} Nc7 {[%emt 0:00:14]} 29. f4 {[%emt 0:00:13]} Ne6 {[%emt 0:00:10]} 30. Nxe6 {[%emt 0:00:04]} Bxe6 {[%emt 0:00:08]} 31. f5 {[%emt 0:00:01]} Bb3 {[%emt 0:00:19]} 32. e5 {[%emt 0:00:04]} Rbd8 {[%emt 0:00:37]} 33. e6 {[%emt 0:00:12]} fxe6 {[%emt 0:00:06]} 34. fxg6 {[%emt 0:00:01]} Rf8 {[%emt 0:00:10]} 35. Qe2 {[%emt 0:00:05]} c4 {[%emt 0:00:20]} 36. Qxh5 {[%emt 0:00:08]} d3+ {[%emt 0:00:02]} 37. Kh1 {[%emt 0:00:02]} Qb7 {[%emt 0:00:11]} 38. Qe5 {[%emt 0:00:17]} Qd5 {[%emt 0:00:12]} 39. Qg3 {[%emt 0:00:09]} Rf5 {[%emt 0:00:11]} 40. Kh2 {[%emt 0:00:02]} Rdf8 {[%emt 0:00:08]} 41. Bxd3 {[%emt 0:00:01]} cxd3 {[%emt 0:00:06]} 42. Rxd3 {[%emt 0:00:01]} Qa5 {[%emt 0:00:12]} 43. g7 {[%emt 0:00:11]} 1-0

[Event "European Online Club-ch-I 2021"]
[Site "Online"]
[Date "2021.03.27"]
[Round "6.1"]
[White "Ribbegren, Karl Johan"]
[Black "Bulockin, Martin"]
[Result "0-1"]
[ECO "D03"]
[WhiteElo "2185"]
[BlackElo "2315"]
[Annotator "NA"]
[PlyCount "90"]
[EventDate "2021.03.27"]
[EventType "team-tourn"]
[EventCountry "NET"]
[SourceTitle "playchess.com"]
[Source "ChessBase"]
[SourceQuality "1"]
[TimeControl "900+5"]

1. d4 {[%emt 0:00:00]} Nf6 {[%emt 0:00:04]} 2. Nf3 {[%emt 0:00:03]} e6 {[%emt 0:00:05]} 3. Bg5 {[%emt 0:00:02]} c5 {[%emt 0:00:05]} 4. e3 {[%emt 0:00:24]} Nc6 {[%emt 0:00:34]} 5. c3 {[%emt 0:01:19]} d5 {[%emt 0:00:15]} 6. Nbd2 {[%emt 0:00:05]} Be7 {[%emt 0:00:09]} 7. Bd3 {[%emt 0:00:03]} O-O {[%emt 0:00:11]} 8. Ne5 {[%emt 0:00:06]} h6 {[%emt 0:00:30]} 9. Bf4 {[%emt 0:00:07]} Nd7 {[%emt 0:00:26]} 10. Qh5 {[%emt 0:00:55]} f5 {[%emt 0:02:20]} 11. Nxc6 {[%emt 0:01:00]} bxc6 {[%emt 0:00:04]} 12. Bxh6 {[%emt 0:00:06]} Qe8 {[%emt 0:02:34]} 13. Qxe8 {[%emt 0:00:15]} Rxe8 {[%emt 0:00:00]} 14. Bf4 {[%emt 0:00:07]} a5 {[%emt 0:00:31]} 15. O-O {[%emt 0:01:05]} Ba6 {[%emt 0:00:36]} 16. Bxa6 {[%emt 0:00:04]} Rxa6 {[%emt 0:00:00]} 17. f3 {[%emt 0:00:36]} Rb6 {[%emt 0:00:41]} 18. Rab1 {[%emt 0:00:14]} cxd4 {[%emt 0:00:44]} 19. exd4 {[%emt 0:00:07]} Rb7 {[%emt 0:00:08]} 20. Rfe1 {[%emt 0:00:09]} Kf7 {[%emt 0:00:07]} 21. Re2 {[%emt 0:00:39]} c5 {[%emt 0:00:26]} 22. Rbe1 {[%emt 0:02:35]} Bf6 {[%emt 0:00:06]} 23. Nb3 {[%emt 0:00:13]} cxd4 {[%emt 0:01:16]} 24. Nxd4 {[%emt 0:00:20]} Bxd4+ {[%emt 0:01:05]} 25. cxd4 {[%emt 0:00:02]} Nb6 {[%emt 0:00:28]} 26. Rc1 {[%emt 0:00:28]} a4 {[%emt 0:00:04]} 27. Rc7+ {[%emt 0:00:49]} Re7 {[%emt 0:00:23]} 28. Rxe7+ {[%emt 0:00:57]} Kxe7 {[%emt 0:00:00]} 29. Kf2 {[%emt 0:00:14]} Nc4 {[%emt 0:00:04]} 30. Bc1 {[%emt 0:00:02]} Kf6 {[%emt 0:00:21]} 31. h4 {[%emt 0:00:08]} g6 {[%emt 0:00:14]} 32. g4 {[%emt 0:00:02]} e5 {[%emt 0:00:10]} 33. dxe5+ {[%emt 0:00:31]} Ke6 {[%emt 0:00:02]} 34. g5 {[%emt 0:00:29]} d4 {[%emt 0:00:03]} 35. f4 {[%emt 0:00:22]} d3 {[%emt 0:00:04]} 36. b3 {[%emt 0:00:22]} dxe2 {[%emt 0:00:18]} 37. bxc4 {[%emt 0:00:03]} Rb1 {[%emt 0:00:18]} 38. Bd2 {[%emt 0:00:03]} e1=Q+ {[%emt 0:00:15]} 39. Bxe1 {[%emt 0:00:04]} Rb2+ {[%emt 0:00:00]} 40. Ke3 {[%emt 0:00:10]} Rxa2 {[%emt 0:00:00]} 41. Bc3 {[%emt 0:00:50]} Rh2 {[%emt 0:00:10]} 42. c5 {[%emt 0:00:25]} Kd5 {[%emt 0:00:10]} 43. Bb4 {[%emt 0:00:27]} a3 {[%emt 0:00:20]} 44. c6 {[%emt 0:00:16]} Kxc6 {[%emt 0:00:09]} 45. e6 {[%emt 0:00:18]} a2 {[%emt 0:00:04]} 0-1

[Event "European Online Club-ch-I 2021"]
[Site "Online"]
[Date "2021.03.27"]
[Round "6.2"]
[White "Mladek, Richard"]
[Black "Verdier, Patrice"]
[Result "1-0"]
[ECO "B82"]
[WhiteElo "2291"]
[BlackElo "2109"]
[Annotator "NA"]
[PlyCount "65"]
[EventDate "2021.03.27"]
[EventType "team-tourn"]
[EventCountry "NET"]
[SourceTitle "playchess.com"]
[Source "ChessBase"]
[SourceQuality "1"]
[TimeControl "900+5"]

1. e4 {[%emt 0:00:00]} c5 {[%emt 0:00:09]} 2. Nf3 {[%emt 0:00:14]} d6 {[%emt 0:00:04]} 3. d4 {[%emt 0:00:04]} cxd4 {[%emt 0:00:05]} 4. Nxd4 {[%emt 0:00:02]} Nf6 {[%emt 0:00:02]} 5. Nc3 {[%emt 0:00:03]} a6 {[%emt 0:00:05]} 6. Bd3 {[%emt 0:00:11]} e6 {[%emt 0:00:23]} 7. O-O {[%emt 0:00:06]} Be7 {[%emt 0:00:03]} 8. Kh1 {[%emt 0:00:10]} O-O {[%emt 0:00:12]} 9. f4 {[%emt 0:00:03]} Nc6 {[%emt 0:01:14]} 10. Nb3 {[%emt 0:00:05]} b5 {[%emt 0:00:23]} 11. Qf3 {[%emt 0:00:06]} Nb4 {[%emt 0:01:31]} 12. e5 {[%emt 0:01:23]} Nfd5 {[%emt 0:00:07]} 13. Be4 {[%emt 0:00:11]} Ra7 {[%emt 0:01:39]} 14. Nd4 {[%emt 0:01:43]} Nxc3 {[%emt 0:01:17]} 15. bxc3 {[%emt 0:00:09]} d5 {[%emt 0:00:16]} 16. Bxh7+ {[%emt 0:00:10]} Kxh7 {[%emt 0:00:12]} 17. cxb4 {[%emt 0:00:03]} Rc7 {[%emt 0:01:54]} 18. c3 {[%emt 0:00:04]} Rc4 {[%emt 0:01:23]} 19. Bd2 {[%emt 0:00:04]} Bxb4 {[%emt 0:00:09]} 20. Qd3+ {[%emt 0:00:03]} g6 {[%emt 0:00:27]} 21. cxb4 {[%emt 0:00:03]} Qb6 {[%emt 0:00:03]} 22. Nb3 {[%emt 0:00:05]} Bb7 {[%emt 0:00:18]} 23. Na5 {[%emt 0:00:33]} Re4 {[%emt 0:00:25]} 24. Rac1 {[%emt 0:00:11]} Ba8 {[%emt 0:00:16]} 25. Rc5 {[%emt 0:00:22]} Kg7 {[%emt 0:00:15]} 26. Rfc1 {[%emt 0:00:04]} Bb7 {[%emt 0:00:33]} 27. h3 {[%emt 0:01:10]} Rh8 {[%emt 0:00:17]} 28. Kh2 {[%emt 0:00:04]} Rh4 {[%emt 0:00:54]} 29. Rc7 {[%emt 0:01:03]} Qf2 {[%emt 0:00:16]} 30. Nxb7 {[%emt 0:00:39]} Re2 {[%emt 0:00:06]} 31. Qg3 {[%emt 0:00:03]} Rxd2 {[%emt 0:00:32]} 32. Nd8 {[%emt 0:00:29]} Rxf4 {[%emt 0:00:30]} 33. Nxe6+ {[%emt 0:00:06]} 1-0